bitfinex/quotes_ETHUSD_20260202
["timestamp","ask_amount","ask_price","bid_price","bid_amount"]
[1770063135180,12.22919089,2333.2,2332.0,1.07303037]
[1770063135376,0.898,2333.1,2332.0,1.07303037]
[1770063135580,1.07158165,2333.0,2332.0,0.001]
[1770063135953,13.30077254,2333.0,2332.0,0.001]
[1770063137184,13.30077254,2333.0,2331.8,0.001]
[1770063137351,13.30077254,2333.0,2331.0,0.000804]
[1770063137352,12.22919089,2332.4,2331.0,0.000804]
[1770063137558,13.301324,2331.8,2331.0,0.000804]
[1770063137786,0.898,2331.7,2331.0,0.000804]
[1770063137951,12.22919089,2331.6,2330.4,1.36473948]
[1770063138160,1.31271909,2331.5,2330.5,1.07272495]
[1770063138979,0.898,2331.6,2330.4,0.56559196]
[1770063139485,0.898,2331.6,2330.3,1.07280706]
[1770063139687,0.898,2331.6,2330.0,0.0008]
[1770063139688,1.07227107,2331.5,2330.0,1.07376137]
[1770063139864,1.13492392,2332.4,2330.2,12.10356459]
[1770063140060,1.97090327,2332.3,2330.4,12.10356459]
[1770063140286,13.76075074,2332.3,2330.4,12.10356459]
[1770063140470,11.78984747,2332.1,2330.5,1.21035646]
[1770063141153,0.899,2332.0,2330.5,13.33102713]
[1770063141352,0.899,2332.0,2330.5,13.31392105]
[1770063141800,13.76093154,2332.0,2330.6,1.07268514]
[1770063142510,13.76093154,2332.0,2329.6,5.29268658]
[1770063142511,11.78984747,2331.8,2329.9,12.12067067]
[1770063142667,1.20234178,2331.7,2330.5,1.07271423]
[1770063143172,1.20234178,2331.7,2330.6,0.01710608]
[1770063143488,0.899,2331.9,2330.6,0.01710608]
[1770063143661,0.899,2331.9,2330.5,13.17627882]
[1770063143866,1.97112053,2331.9,2330.5,13.17627882]
[1770063144184,13.760968,2331.9,2330.5,1.07271423]
[1770063144391,13.760968,2331.9,2330.5,1.07271859]
[1770063144589,13.59476082,2331.8,2330.4,1.07274141]
[1770063144884,13.59476082,2331.8,2330.3,4.29123223]
[1770063145182,13.59476082,2331.8,2330.5,1.07272644]
[1770063145683,13.59476082,2331.8,2330.5,1.07271898]
[1770063145988,13.59476082,2331.8,2330.2,4.29143181]
[1770063145989,1.07217909,2331.7,2330.2,4.29143181]
[1770063146178,1.64247436,2331.6,2330.3,1.74678657]
[1770063147255,13.43232183,2331.6,2330.0,2.24619182]
[1770063147584,13.43232183,2331.6,2330.1,1.07290753]
[1770063147786,13.43232183,2331.6,2330.0,0.0008]
[1770063147787,1.07231706,2331.4,2330.0,0.0008]
[1770063147987,1.97130645,2331.5,2330.0,0.0008]
[1770063148560,12.86215392,2331.5,2330.0,0.0008]
[1770063148760,2.12191909,2331.4,2330.0,0.0008]
[1770063149322,13.91176656,2331.4,2330.0,0.0008]
[1770063149666,13.91176656,2331.4,2330.2,0.001]
[1770063149998,1.07236305,2331.3,2330.2,0.001]
[1770063151797,18.20121879,2331.4,2330.2,0.001]
[1770063151798,14.98410902,2331.4,2330.2,0.001]
[1770063152103,1.4984109,2331.3,2330.2,0.001]
[1770063152267,3.19426155,2331.4,2330.2,0.001]
[1770063153574,2.12191909,2331.4,2330.2,0.001]
[1770063153776,1.22291909,2331.4,2330.2,12.10456459]
[1770063153972,1.97119811,2331.7,2330.3,0.01710608]
[1770063154398,1.97119811,2331.7,2330.4,1.0727772]
[1770063155797,0.0011,2331.9,2330.4,13.19344787]
[1770063156000,0.0011,2331.9,2330.5,13.85202026]
[1770063156294,0.0011,2331.9,2330.6,1.07268514]
[1770063156497,0.0011,2331.9,2330.8,12.10356459]
[1770063156681,0.0011,2331.9,2330.6,1.07268514]
[1770063156877,0.0011,2331.9,2330.6,13.17624973]
[1770063157080,0.0011,2331.9,2330.8,0.01710608]
[1770063157381,0.0011,2331.9,2330.8,12.10356459]
[1770063157596,0.0011,2331.9,2330.7,1.92325521]
[1770063157796,11.78984747,2331.7,2330.5,1.07269466]
[1770063158509,1.07222508,2331.6,2330.2,0.001]
[1770063158877,12.86207255,2331.6,2330.2,0.001]
[1770063159078,1.07220298,2331.7,2330.4,0.01710608]
[1770063159275,0.0011,2331.9,2330.3,0.01710608]
[1770063159276,13.76101367,2331.8,2330.3,0.01710608]
[1770063159497,1.80505658,2331.7,2330.3,1.33656468]
[1770063159905,12.86303657,2331.9,2330.4,12.10356459]
[1770063160097,13.76203657,2331.9,2330.4,12.10356459]
[1770063160601,12.68994747,2331.9,2330.5,1.07273117]
[1770063161112,0.0011,2331.9,2330.8,12.12067067]
[1770063161407,0.0011,2331.9,2331.0,12.10356459]
[1770063161574,0.0011,2331.9,2331.1,1.21206707]
[1770063162613,0.0011,2332.1,2331.2,13.17597364]
[1770063162818,0.0011,2332.1,2331.2,1.07240905]
[1770063163302,0.0011,2332.1,2331.1,5.5017033]
[1770063163303,0.0011,2332.1,2331.1,1.21206707]
[1770063163510,0.0011,2332.1,2331.1,1.07242242]
[1770063164174,0.0011,2331.5,2331.1,1.07242242]
[1770063164587,0.0011,2331.7,2330.9,4.29017942]
[1770063166730,0.0011,2331.7,2330.8,1.07254708]
[1770063167607,0.0011,2331.7,2330.8,1.08965316]
[1770063167803,0.0011,2331.7,2330.9,0.62789375]
[1770063168842,0.0011,2331.7,2331.0,1.07250107]
[1770063169344,0.0011,2332.1,2331.0,1.07250107]
[1770063169544,0.91425059,2332.0,2331.0,1.07250107]
[1770063169846,0.91425261,2331.9,2331.0,1.07250107]
[1770063170030,0.0011,2332.1,2331.0,2.10225235]
[1770063170230,0.9142499,2332.0,2331.0,2.10225235]
[1770063170434,0.0011,2332.1,2331.0,2.10225235]
[1770063170736,0.914139,2332.0,2331.0,2.10225235]
[1770063170945,0.0011,2332.1,2331.0,2.10225235]
[1770063171237,0.91413886,2332.0,2331.1,0.70201504]
[1770063171532,0.0011,2332.1,2331.1,0.70201504]
[1770063171734,0.91405375,2332.0,2331.1,0.70201504]
[1770063171905,0.0011,2332.1,2331.1,0.70201504]
[1770063172205,0.91405664,2332.0,2331.1,0.70201504]
[1770063172406,0.0011,2332.1,2331.2,0.28042674]
[1770063172606,0.91396529,2332.0,2331.2,0.28042674]
[1770063172806,0.0011,2332.1,2331.2,0.28042674]
[1770063173022,0.91392369,2332.0,2331.3,1.07236305]
[1770063173236,0.0011,2332.1,2331.3,1.07236305]
[1770063173413,0.91383478,2332.0,2331.3,1.70679411]
[1770063173618,0.0011,2332.1,2331.3,1.70679411]
[1770063173819,0.91373646,2332.0,2331.3,1.70679411]
[1770063174117,0.0011,2332.1,2331.3,1.70679411]
[1770063174317,0.91385746,2332.0,2331.3,1.70679411]
[1770063174537,0.0011,2332.1,2331.3,1.70679411]
[1770063174729,0.91375153,2332.0,2331.3,1.70679411]
[1770063174932,0.0011,2332.1,2331.3,1.70679411]
[1770063175148,0.0011,2332.1,2331.4,0.62767266]
[1770063175504,0.91367367,2332.0,2331.4,0.62767266]
[1770063175708,0.0011,2332.1,2331.3,1.07236178]
[1770063175941,0.9136704,2332.0,2331.3,1.07236178]
[1770063176140,0.0011,2332.1,2331.3,1.07236178]
[1770063176310,0.9136728,2332.0,2331.3,1.07236178]
[1770063176511,0.0011,2332.1,2331.3,1.63661364]
[1770063176732,0.91367165,2332.0,2331.3,1.63661364]
[1770063176917,0.0011,2332.1,2331.3,1.63661364]
[1770063177125,0.91367608,2332.0,2331.3,1.63661364]
[1770063177324,0.0011,2332.1,2331.3,1.63661364]
[1770063177614,0.91369772,2332.0,2331.3,1.63661364]
[1770063177814,0.0011,2332.1,2331.3,1.63661364]
[1770063178016,0.91369487,2332.0,2331.3,1.63661364]
[1770063178222,0.0011,2331.9,2331.3,1.63661364]
[1770063179324,0.0011,2331.9,2331.4,0.62076458]
[1770063180813,0.0011,2331.9,2331.4,1.69307987]
[1770063181445,1.13492392,2332.8,2331.8,11.96098378]
[1770063181743,12.96319825,2332.7,2331.4,14.53595757]
[1770063181954,0.91510425,2332.6,2331.7,0.01710608]
[1770063182158,1.13492392,2332.9,2331.7,11.9438777]
[1770063182453,4.59019608,2332.9,2331.8,1.19438777]
[1770063182657,4.59019608,2332.9,2331.4,14.55306365]
[1770063182658,14.09788062,2332.8,2331.4,14.55306365]
[1770063182841,0.9148627,2332.7,2331.4,14.55306365]
[1770063186358,0.9148627,2332.7,2331.8,11.9438777]
[1770063186556,1.13602392,2333.1,2332.0,11.9438777]
[1770063186744,0.91604047,2333.0,2332.0,12.8428777]
[1770063186961,0.0011,2333.1,2332.2,11.9438777]
[1770063187140,0.91605679,2333.0,2332.1,1.28428777]
[1770063187344,13.12073593,2333.1,2332.0,0.899]
[1770063187564,12.96354614,2333.0,2331.5,11.9438777]
[1770063187740,12.96354614,2332.9,2331.7,0.01710608]
[1770063187937,0.91545214,2332.8,2331.7,0.01710608]
[1770063188261,12.048094,2332.9,2331.7,0.01710608]
[1770063188465,2.22724042,2332.8,2331.7,1.839217]
[1770063188666,1.31197156,2332.8,2331.7,1.839217]
[1770063189841,12.048094,2332.9,2331.8,1.07213311]
[1770063190041,0.91526727,2332.8,2331.8,1.07213311]
[1770063190242,12.048094,2332.9,2331.8,1.07213311]
[1770063190442,0.91532642,2332.8,2331.8,1.07213311]
[1770063190684,0.91532642,2332.7,2331.8,1.07213311]
[1770063190837,12.048094,2332.9,2331.9,0.71827765]
[1770063191038,0.91558646,2332.8,2331.9,0.71827765]
[1770063191244,0.0011,2333.1,2331.9,12.66215535]
[1770063191245,0.0011,2332.6,2331.9,12.66215535]
[1770063191447,12.049194,2333.1,2331.9,0.71827765]
[1770063191683,0.0011,2332.8,2331.9,0.71827765]
[1770063192092,0.0011,2332.8,2332.0,1.07204116]
[1770063192292,0.0011,2332.8,2332.1,0.60784835]
[1770063193096,0.0011,2332.8,2331.9,0.71827765]
[1770063193097,12.96357711,2332.7,2331.9,0.71827765]
[1770063193301,12.96357711,2332.6,2331.7,1.07214297]
[1770063193592,12.048094,2332.6,2331.7,1.07214297]
[1770063194092,12.048094,2332.6,2331.6,4.28982804]
[1770063194395,0.91628683,2332.5,2331.6,4.28982804]
[1770063194605,12.048094,2332.6,2331.6,0.001]
[1770063194606,0.91658345,2332.4,2331.6,0.001]
[1770063194887,12.048094,2332.2,2331.6,0.001]
[1770063195052,13.18301792,2332.5,2331.6,0.001]
[1770063195252,0.91660739,2332.4,2331.6,0.001]
[1770063195480,0.91660739,2332.3,2331.6,0.53905248]
[1770063195663,12.048094,2332.5,2331.6,0.53905248]
[1770063195865,0.91680824,2332.4,2331.6,0.53905248]
[1770063196187,2.03392392,2332.7,2331.7,1.07217909]
[1770063196391,0.91698774,2332.6,2331.8,0.58999958]
[1770063196604,0.91698774,2332.5,2331.8,0.58999958]
[1770063196890,3.69976169,2332.7,2331.8,0.58999958]
[1770063197094,0.91708546,2332.6,2331.8,0.58999958]
[1770063197397,0.91708546,2332.5,2331.7,1.07217909]
[1770063197595,0.91720279,2332.4,2331.6,0.001]
[1770063197894,0.91720792,2332.3,2331.6,0.001]
[1770063198193,12.048094,2332.4,2331.6,0.001]
[1770063198396,15.74785569,2332.7,2331.6,0.001]
[1770063198600,2.74972119,2332.6,2331.6,0.001]
[1770063198899,0.91729401,2332.5,2331.6,0.001]
[1770063199080,0.91729401,2332.4,2331.6,0.001]
[1770063199271,1.83242718,2332.6,2331.6,0.01810608]
[1770063199476,0.91738492,2332.5,2331.6,0.01810608]
[1770063199677,0.91738492,2332.4,2331.6,1.21440446]
[1770063199878,0.91738492,2332.4,2331.6,1.19729838]
[1770063200174,16.81957656,2332.7,2331.6,2.26947868]
[1770063200395,0.91759477,2332.6,2331.6,2.26947868]
[1770063200568,2.05251869,2332.6,2331.6,2.26947868]
[1770063200768,3.27046268,2332.6,2331.7,1.85023479]
[1770063201101,0.91759477,2332.5,2331.7,1.85023479]
[1770063201398,0.91759477,2332.4,2331.7,1.85023479]
[1770063201576,3.48779183,2332.6,2331.7,1.85023479]
[1770063204205,0.91806485,2332.2,2331.6,0.001]
[1770063204910,13.9486399,2332.2,2331.6,0.001]
[1770063205089,0.91806485,2332.1,2331.6,0.001]
[1770063210525,1.50472045,2332.5,2331.6,0.001]
[1770063210526,1.13602392,2332.5,2331.6,0.001]
[1770063210721,0.91885403,2332.4,2331.6,0.001]
[1770063210892,0.91885403,2332.3,2331.6,0.001]
[1770063211088,0.0011,2332.5,2331.7,0.01710608]
[1770063211294,0.91880107,2332.4,2331.8,1.07213311]
[1770063211489,0.0011,2332.5,2331.7,2.24499069]
[1770063211793,0.91886137,2332.4,2331.7,1.07214311]
[1770063212011,0.91886137,2332.3,2331.7,1.07216527]
[1770063212305,0.0011,2332.5,2331.7,1.07216527]
[1770063212509,0.91873077,2332.4,2331.7,1.60836894]
[1770063212729,0.91873077,2332.3,2331.7,1.60836894]
[1770063212944,0.0011,2332.5,2331.7,1.60836894]
[1770063213131,0.91873114,2332.4,2331.7,0.53620367]
[1770063213332,0.91873114,2332.3,2331.6,1.07322376]
[1770063213532,1.07292645,2332.5,2331.6,0.001]
[1770063213719,12.87737296,2332.4,2331.6,0.001]
[1770063213919,12.87737296,2332.4,2331.4,0.001]
[1770063213920,13.09354023,2332.1,2331.4,0.001]
[1770063214217,3.27747272,2332.0,2331.4,1.07330537]
[1770063214417,0.91875665,2331.9,2331.4,0.001]
[1770063214618,0.91828094,2331.8,2331.4,0.001]
[1770063214836,2.35871607,2332.0,2331.4,0.001]
[1770063215038,12.87670078,2331.9,2331.4,0.001]
[1770063215217,2.55511855,2331.8,2331.4,0.001]
[1770063215536,1.63703408,2331.8,2331.4,0.001]
[1770063215834,0.91796531,2331.7,2331.4,0.001]
[1770063216148,1.63703408,2331.8,2331.4,0.001]
[1770063217516,0.91775237,2331.7,2331.4,0.001]
[1770063217824,1.45134028,2331.7,2331.4,0.001]
[1770063218022,0.91772274,2331.6,2331.2,0.001]
[1770063218231,1.45134028,2331.7,2330.5,0.001]
[1770063218232,13.77528194,2331.5,2330.5,0.001]
[1770063218431,11.95861631,2331.3,2330.5,0.001]
[1770063218632,0.91766563,2331.2,2330.7,1.07262868]
[1770063218831,2.03392392,2331.5,2330.7,1.07262868]
[1770063219019,2.03392392,2331.5,2330.5,4.29183747]
[1770063219020,0.91726212,2331.4,2330.5,0.001]
[1770063219219,0.91726212,2331.3,2330.5,1.07372757]
[1770063219427,0.91726212,2331.2,2330.5,1.07372757]
[1770063219660,1.07231706,2331.4,2330.5,0.001]
[1770063219826,2.42332459,2331.3,2330.5,0.001]
[1770063220024,0.91683886,2331.2,2330.5,0.001]
[1770063220230,1.50648573,2331.3,2330.5,0.001]
[1770063220630,0.899,2331.5,2330.5,0.001]
[1770063220923,0.91657621,2331.4,2330.5,0.001]
[1770063221115,12.85761631,2331.5,2330.5,0.001]
[1770063221318,0.91643647,2331.4,2330.5,0.001]
[1770063221544,12.85761631,2331.5,2330.5,0.001]
[1770063221718,2.30908921,2331.4,2330.5,0.001]
[1770063221920,0.91596056,2331.3,2330.5,0.001]
[1770063222128,13.35160169,2331.4,2330.5,0.001]
[1770063222454,11.95861631,2331.2,2330.5,0.001]
[1770063223524,2.46530666,2331.4,2330.5,0.001]
[1770063223726,1.36538833,2331.3,2330.5,0.001]
[1770063224050,0.44992306,2331.3,2330.5,0.001]
[1770063225655,17.14671032,2331.5,2330.5,0.001]
[1770063225656,2.5862642,2331.7,2330.7,12.7829633]
[1770063225864,0.91598736,2331.6,2330.7,12.7829633]
[1770063226155,11.95861631,2332.0,2330.8,11.71036972]
[1770063226356,0.91629143,2331.9,2330.8,11.71036972]
[1770063226567,11.95861631,2332.0,2330.8,11.71036972]
[1770063226859,1.13602392,2332.4,2331.1,11.71036972]
[1770063227065,12.22269075,2332.3,2331.2,1.17274758]
[1770063227271,12.22269075,2332.3,2330.8,0.01710608]
[1770063227272,0.91615165,2332.2,2330.8,11.7274758]
[1770063227659,0.91615165,2332.2,2331.1,11.71036972]
[1770063229172,14.93554234,2332.2,2331.0,1.07250107]
[1770063229469,13.86358963,2332.1,2331.0,1.07250107]
[1770063229646,0.26407444,2332.3,2331.0,13.33057354]
[1770063229852,0.91629354,2332.2,2331.1,1.76376839]
[1770063230169,0.26407444,2332.3,2331.1,14.18489627]
[1770063230365,0.91641582,2332.2,2331.1,14.18489627]
[1770063230538,12.94853798,2332.4,2331.2,12.43823396]
[1770063230738,0.91646979,2332.3,2331.2,12.42112788]
[1770063230938,0.9164582,2332.2,2331.3,1.41848963]
[1770063231167,14.02039998,2332.4,2331.1,1.76376839]
[1770063231370,13.50155937,2332.3,2331.1,1.76376839]
[1770063231540,0.91653531,2332.2,2331.1,14.18489627]
[1770063231741,12.58502406,2332.3,2331.4,0.001]
[1770063232068,0.0011,2332.1,2331.4,0.001]
[1770063233175,0.0011,2332.1,2331.4,12.42212788]
[1770063233341,0.0011,2332.1,2331.5,1.24221279]
[1770063233542,0.0011,2332.1,2331.4,0.001]
[1770063233940,13.5011499,2332.0,2331.4,0.001]
[1770063234259,0.0011,2332.1,2331.4,0.001]
[1770063234769,0.91614575,2332.0,2331.4,0.001]
[1770063234976,12.58612406,2332.1,2331.4,0.001]
[1770063235177,0.91612441,2332.0,2331.4,0.001]
[1770063235468,13.93463647,2332.1,2331.4,0.001]
[1770063235771,13.50102074,2332.0,2331.4,0.001]
[1770063235944,12.58502406,2332.0,2331.4,0.001]
[1770063236146,12.58502406,2331.8,2331.1,0.001]
[1770063236474,13.5006641,2331.7,2331.1,0.001]
[1770063236771,12.58502406,2331.7,2331.1,0.001]
[1770063237270,2.52838757,2331.9,2331.1,0.001]
[1770063237271,1.39346365,2331.9,2331.1,0.001]
[1770063237575,0.91517897,2331.8,2331.1,0.001]
[1770063237768,2.40454564,2331.7,2331.1,0.001]
[1770063237973,1.48936667,2331.7,2331.1,0.001]
[1770063238971,14.3994089,2331.6,2330.5,1.07372418]
[1770063239170,12.58502406,2331.4,2330.5,1.07372907]
[1770063239574,12.58502406,2331.4,2330.5,0.001]
[1770063239784,1.25850241,2331.3,2330.6,1.07268272]
[1770063239952,1.25850241,2331.3,2330.5,0.001]
[1770063241458,1.25850241,2331.3,2330.6,0.01710608]
[1770063241664,14.07439073,2331.7,2330.6,0.01710608]
[1770063241863,0.9151573,2331.6,2330.6,0.01710608]
[1770063242065,0.9151573,2331.5,2330.7,1.07263912]
[1770063242273,14.07439073,2331.7,2330.7,1.07263912]
[1770063242468,2.63339286,2331.6,2330.7,2.85288208]
[1770063242690,0.91534801,2331.5,2330.7,2.85288208]
[1770063242990,14.30306891,2331.6,2330.7,1.07263912]
[1770063243189,13.50011759,2331.5,2330.5,0.001]
[1770063243491,12.58502406,2331.3,2330.5,1.07372536]
[1770063243666,0.91509353,2331.2,2330.5,0.001]
[1770063245986,12.58502406,2331.3,2330.5,0.001]
[1770063246193,2.1736468,2331.2,2330.5,0.001]
[1770063246389,1.25850241,2331.2,2330.9,0.001]
[1770063247864,1.71804485,2331.6,2330.9,0.001]
[1770063248062,1.50362045,2331.8,2330.9,0.001]
[1770063248063,0.91505841,2331.5,2330.9,0.001]
[1770063248264,13.48402406,2331.9,2330.9,0.001]
[1770063248465,13.50020838,2331.8,2330.9,0.001]
[1770063248666,1.97109304,2331.9,2330.9,0.001]
[1770063248667,13.50020838,2331.7,2330.9,0.001]
[1770063248863,0.91518432,2331.6,2330.9,0.001]
[1770063249083,12.58502406,2331.4,2330.6,0.001]
[1770063249287,14.39858519,2331.3,2330.6,0.001]
[1770063249495,12.58502406,2331.1,2330.6,0.001]
[1770063249803,0.91456113,2331.2,2330.0,1.07372277]
[1770063249804,12.58502406,2330.9,2330.0,1.07372277]
[1770063250174,13.49913715,2330.8,2330.0,0.0008]
[1770063250497,14.04219295,2330.7,2330.0,0.0008]
[1770063250999,12.58502406,2330.5,2329.3,1.0732616]
[1770063251302,12.58502406,2330.3,2329.3,1.0732616]
[1770063251593,12.58502406,2330.3,2329.4,1.07322441]
[1770063251770,1.25850241,2330.2,2329.4,1.07320699]
[1770063252191,1.25850241,2330.2,2329.1,1.07337598]
[1770063252602,1.25850241,2330.2,2329.1,13.49450386]
[1770063253598,1.45716889,2330.7,2329.7,12.43823396]
[1770063253771,12.58502406,2330.7,2329.4,12.43823396]
[1770063254194,12.58502406,2330.7,2329.8,1.09012821]
[1770063254766,12.58502406,2330.7,2329.9,0.01710608]
[1770063254969,12.58502406,2330.7,2329.8,1.09012821]
[1770063255200,13.65768134,2330.7,2329.7,1.07309281]
[1770063255502,13.95079219,2330.6,2329.7,1.07309892]
[1770063255703,13.95079219,2330.6,2329.8,1.07303436]
[1770063256001,13.95079219,2330.6,2329.8,1.09014044]
[1770063256799,1.13492392,2331.2,2329.8,13.51126832]
[1770063256999,13.9350449,2331.5,2330.5,0.01710608]
[1770063257179,14.8350449,2331.5,2330.2,12.43823396]
[1770063257384,13.49657325,2331.4,2330.3,0.01710608]
[1770063257580,12.58502406,2331.4,2330.3,0.01710608]
[1770063257794,14.17575813,2331.3,2330.3,1.26092948]
[1770063258095,14.17575813,2331.3,2330.3,0.01710608]
[1770063258486,14.17575813,2331.3,2330.4,1.0727772]
[1770063259100,1.35002084,2331.5,2330.6,0.01710608]
[1770063259271,13.65729821,2331.5,2330.3,1.07279262]
[1770063259674,13.65729821,2331.5,2330.4,0.001]
[1770063259874,12.90722904,2331.3,2330.4,0.001]
[1770063261177,13.97959915,2331.3,2330.4,0.001]
[1770063262183,12.90722904,2331.3,2330.4,0.001]
[1770063262422,14.30408719,2331.2,2330.4,0.001]
[1770063264013,15.37649747,2331.2,2330.4,0.001]
[1770063264310,13.81836411,2331.1,2330.4,0.001]
[1770063264515,12.90612904,2331.1,2330.4,0.001]
[1770063264688,0.91249042,2331.0,2330.4,0.001]
[1770063264894,1.38186195,2330.9,2330.4,0.001]
[1770063267785,14.28799099,2330.9,2330.4,0.001]
[1770063267986,0.91331427,2330.8,2330.4,0.001]
[1770063268182,0.91331427,2330.8,2330.1,0.001]
[1770063268183,12.90612904,2330.6,2330.1,0.001]
[1770063268414,13.81941112,2330.5,2330.1,0.001]
[1770063268589,2.38522319,2330.4,2330.1,0.001]
[1770063268912,1.47194111,2330.4,2330.1,0.001]
[1770063269489,0.9,2330.6,2330.1,0.001]
[1770063269689,0.9130791,2330.5,2330.1,0.001]
[1770063270015,2.51678587,2330.9,2330.1,0.001]
[1770063270184,0.91318896,2330.8,2330.1,11.83943151]
[1770063270388,16.01351589,2331.1,2330.1,0.001]
[1770063270589,15.98953326,2331.0,2330.1,0.001]
[1770063270836,0.91327724,2330.9,2330.1,0.001]
[1770063271013,0.91327724,2330.8,2330.1,0.001]
[1770063271218,15.07625602,2331.0,2330.1,0.001]
[1770063271414,0.9132112,2330.9,2330.1,0.001]
[1770063271589,2.61940956,2330.8,2330.1,0.001]
[1770063271790,2.17012698,2331.0,2330.1,0.001]
[1770063271990,0.91274618,2330.9,2330.1,0.001]
[1770063272205,0.91274618,2330.8,2330.1,0.001]
[1770063272418,16.01353125,2331.1,2330.1,0.001]
[1770063272625,0.91289315,2331.0,2330.1,0.001]
[1770063272846,0.91289315,2330.9,2330.1,0.001]
[1770063273018,0.91289315,2330.8,2330.1,1.29395107]
[1770063273543,0.91289315,2330.8,2330.1,2.36683777]
[1770063273736,0.91289315,2330.8,2330.2,0.001]
[1770063275228,14.87969525,2331.1,2330.2,0.001]
[1770063275428,0.91312996,2331.0,2330.2,0.001]
[1770063275640,0.91312996,2330.9,2330.2,1.85091177]
[1770063275851,2.12174576,2331.0,2330.2,1.85091177]
[1770063276043,0.91312536,2330.9,2330.2,1.85091177]
[1770063276248,2.12174576,2331.0,2330.2,1.85091177]
[1770063276414,0.91320756,2330.9,2330.2,1.85091177]
[1770063276615,1.32395445,2330.8,2330.2,0.001]
[1770063276811,12.90612904,2330.6,2330.2,0.001]
[1770063277013,0.91303016,2330.5,2330.0,0.001]
[1770063277225,12.90612904,2330.6,2330.0,0.001]
[1770063277455,0.91306845,2330.5,2330.0,0.001]
[1770063277651,1.49541214,2330.5,2330.0,0.001]
[1770063277858,13.97878727,2330.7,2330.0,0.001]
[1770063278054,0.91277219,2330.6,2330.0,0.001]
[1770063278253,0.91277219,2330.5,2330.0,0.001]
[1770063278453,15.11371119,2330.7,2330.0,0.001]
[1770063278660,1.8131536,2330.6,2330.0,0.001]
[1770063278856,2.60584008,2330.5,2330.0,0.001]
[1770063279068,1.69268648,2330.5,2330.0,0.001]
[1770063280832,1.13602392,2331.1,2330.1,0.01710608]
[1770063281059,0.91318735,2330.9,2330.2,0.01710608]
[1770063281254,0.0011,2331.1,2330.2,11.85553759]
[1770063281566,0.0011,2331.1,2330.5,11.83843151]
[1770063282060,0.0011,2331.1,2330.7,0.01710608]
[1770063282246,0.0011,2331.3,2330.6,1.07268514]
[1770063282440,0.0011,2331.3,2330.7,1.72018572]
[1770063283273,0.0011,2331.3,2330.6,1.07268514]
[1770063283837,0.0011,2331.3,2330.4,1.0727772]
[1770063284764,0.0011,2331.3,2330.4,12.91120871]
[1770063286941,0.0011,2331.3,2330.6,11.85553759]
[1770063287352,0.0011,2331.5,2330.9,0.01710608]
[1770063287676,12.90612904,2332.0,2330.6,11.85553759]
[1770063287677,0.6911,2332.1,2331.0,11.85553759]
[1770063287871,0.91247118,2332.0,2331.1,1.18555376]
[1770063288075,0.6911,2332.1,2331.1,1.18555376]
[1770063288239,0.91247391,2332.0,2331.2,1.07240905]
[1770063288441,12.90612904,2331.8,2331.1,1.18555376]
[1770063288653,0.91200684,2331.9,2330.6,1.07267598]
[1770063288654,12.90612904,2331.6,2330.6,1.07267598]
[1770063288871,0.91187087,2331.5,2330.7,1.07260576]
[1770063289074,12.90612904,2331.6,2330.5,4.2908602]
[1770063289274,0.91179653,2331.5,2330.3,16.47906255]
[1770063289478,12.57141622,2331.3,2330.3,0.001]
[1770063289775,14.83142426,2331.2,2330.3,0.001]
[1770063289973,13.9197375,2331.2,2330.3,0.001]
[1770063290886,14.99216049,2331.2,2330.3,0.001]
[1770063291078,13.9197375,2331.2,2330.3,0.001]
[1770063291764,14.99215241,2331.2,2330.3,0.001]
[1770063291969,15.15517634,2331.1,2330.3,0.001]
[1770063292169,0.91183092,2331.0,2330.3,0.001]
[1770063292374,14.2434804,2331.1,2330.3,0.001]
[1770063292682,0.91183491,2331.0,2330.3,0.001]
[1770063292980,14.2434804,2331.1,2330.3,0.001]
[1770063292981,15.31593941,2331.1,2330.3,0.001]
[1770063293170,2.44359394,2331.0,2330.3,0.001]
[1770063293370,1.53159394,2331.0,2330.3,0.001]
[1770063294355,12.31531972,2331.0,2330.3,0.001]
[1770063295888,13.38776072,2331.2,2330.3,0.001]
[1770063296065,0.91221143,2331.1,2330.3,0.001]
[1770063296265,13.38776072,2331.2,2330.3,0.001]
[1770063296463,13.22742064,2331.1,2330.3,0.001]
[1770063296691,14.65735585,2331.0,2330.3,0.001]
[1770063296904,13.74530588,2331.0,2330.3,0.001]
[1770063298180,14.81780775,2331.0,2330.3,0.001]
[1770063298658,13.2274249,2330.9,2330.0,0.001]
[1770063298858,12.31531972,2330.7,2330.0,0.001]
[1770063299064,0.91195724,2330.6,2330.0,0.001]
[1770063299284,13.38798738,2330.7,2330.0,0.001]
[1770063299586,0.91205317,2330.6,2330.5,0.001]
[1770063299896,12.31531972,2330.5,2329.1,0.001]
[1770063300092,12.31531972,2330.2,2329.2,1.07332113]
[1770063300389,2.33000406,2330.5,2329.6,12.49939688]
[1770063300591,0.9,2330.5,2329.6,12.49939688]
[1770063301259,0.9,2330.5,2329.7,1.07309954]
[1770063301964,0.9,2330.5,2329.6,1.0731135]
[1770063302174,13.21531972,2330.5,2329.6,1.07313612]
[1770063302378,2.75785722,2330.5,2329.6,1.07313612]
[1770063302704,0.9,2330.5,2329.6,1.07313612]
[1770063303370,0.9,2330.5,2329.5,4.29274626]
[1770063304667,15.14161998,2330.8,2329.7,0.01710608]
[1770063304998,1.13981657,2331.3,2330.4,0.01710608]
[1770063305206,0.9125652,2331.2,2330.0,12.49939688]
[1770063305409,2.41787913,2331.3,2330.1,1.07291532]
[1770063305570,13.22761273,2331.2,2330.1,1.07291532]
[1770063305767,14.36743412,2331.1,2329.7,1.07306352]
[1770063306078,12.31531972,2330.4,2329.1,1.07436448]
[1770063306268,12.31531972,2330.2,2329.1,0.001]
[1770063306465,12.31531972,2330.0,2329.1,0.001]
[1770063306694,12.31531972,2329.6,2327.7,12.50170252]
[1770063307011,1.13981657,2329.7,2327.7,12.50170252]
[1770063307012,13.45513629,2329.1,2327.7,0.00230564]
[1770063307246,12.31531972,2328.9,2327.7,0.00230564]
[1770063307508,0.9,2328.9,2328.2,1.18840402]
[1770063307713,13.21531972,2329.3,2328.2,1.2055101]
[1770063308004,13.21531972,2329.3,2328.2,1.18841944]
[1770063308202,14.28860969,2329.3,2327.8,4.31295259]
[1770063308367,14.28860969,2329.3,2327.7,0.00230564]